[Event "Late-Titled-Tuesday-Blitz-January-16-2024"]
[Site "Chess.com"]
[Date "2024.01.16"]
[Round "1"]
[White "Zkid"]
[Black "nfds"]
[Result "1-0"]
[WhiteElo "2934"]
[BlackElo "2503"]
[TimeControl "180+1"]
[EndTime "14:06:28 PST"]
[Termination "Zkid won by checkmate"]

1. e4 {[%clk 0:03:00.9]} 1... d6 {[%clk 0:02:59]} 2. d4 {[%clk 0:02:59.3]} 2...
e6 {[%clk 0:01:08.3]} 3. c4 {[%clk 0:02:56.8]} 3... Be7 {[%clk 0:00:20.7]} 4.
Nc3 {[%clk 0:02:54.9]} 4... Nf6 {[%clk 0:00:21.6]} 5. Nf3 {[%clk 0:02:51.9]}
5... O-O {[%clk 0:00:22.5]} 6. Be2 {[%clk 0:02:51.9]} 6... b6 {[%clk 0:00:23.1]}
7. O-O {[%clk 0:02:49.9]} 7... Bb7 {[%clk 0:00:24]} 8. Qc2 {[%clk 0:02:49.4]}
8... Nbd7 {[%clk 0:00:24.5]} 9. e5 {[%clk 0:02:21.6]} 9... dxe5 {[%clk 0:00:23]}
10. dxe5 {[%clk 0:02:20.2]} 10... Ne8 {[%clk 0:00:19.2]} 11. Rd1 {[%clk
0:02:10.4]} 11... Qc8 {[%clk 0:00:19]} 12. Bg5 {[%clk 0:01:51.1]} 12... Qd8
{[%clk 0:00:10.4]} 13. h4 {[%clk 0:01:31.7]} 13... h6 {[%clk 0:00:09.9]} 14.
Bxh6 {[%clk 0:01:20.6]} 14... gxh6 {[%clk 0:00:08.9]} 15. Qd2 {[%clk 0:01:20.5]}
15... Bxf3 {[%clk 0:00:06.1]} 16. Bxf3 {[%clk 0:01:07.5]} 16... Nxe5 {[%clk
0:00:06.2]} 17. Bxa8 {[%clk 0:01:04.9]} 17... Qxa8 {[%clk 0:00:07.1]} 18. Qxh6
{[%clk 0:00:59.1]} 18... Ng4 {[%clk 0:00:07.4]} 19. Qf4 {[%clk 0:00:54.1]} 19...
f5 {[%clk 0:00:06.2]} 20. Rd7 {[%clk 0:00:48.7]} 20... Kf7 {[%clk 0:00:04.3]}
21. Re1 {[%clk 0:00:37.3]} 21... Nef6 {[%clk 0:00:04.8]} 22. Rxe7+ {[%clk
0:00:33.2]} 22... Kxe7 {[%clk 0:00:05]} 23. Qxc7+ {[%clk 0:00:33.4]} 23... Nd7
{[%clk 0:00:04.5]} 24. Nd5+ {[%clk 0:00:33.3]} 24... Ke8 {[%clk 0:00:04.6]} 25.
Rxe6+ {[%clk 0:00:32.8]} 25... Kf7 {[%clk 0:00:04.4]} 26. Qxd7+ {[%clk
0:00:33.3]} 26... Kg8 {[%clk 0:00:04.7]} 27. Rg6+ {[%clk 0:00:34.2]} 27... Kh8
{[%clk 0:00:04.6]} 28. Qg7# {[%clk 0:00:35.1]} 1-0

[Event "Late-Titled-Tuesday-Blitz-January-16-2024"]
[Site "Chess.com"]
[Date "2024.01.16"]
[Round "1"]
[White "Maxfan2008"]
[Black "Zhigalko_Sergei"]
[Result "0-1"]
[WhiteElo "2504"]
[BlackElo "2960"]
[TimeControl "180+1"]
[EndTime "14:06:30 PST"]
[Termination "Zhigalko_Sergei won by resignation"]

1. e4 {[%clk 0:03:00.9]} 1... c5 {[%clk 0:03:00]} 2. Nc3 {[%clk 0:02:57.9]} 2...
Nc6 {[%clk 0:03:00.5]} 3. f4 {[%clk 0:02:58.3]} 3... g6 {[%clk 0:03:00.9]} 4.
Nf3 {[%clk 0:02:58.9]} 4... Bg7 {[%clk 0:03:01.6]} 5. Bc4 {[%clk 0:02:59.5]}
5... e6 {[%clk 0:03:01.9]} 6. e5 {[%clk 0:02:59.9]} 6... d5 {[%clk 0:03:02]} 7.
exd6 {[%clk 0:03:00.8]} 7... Qxd6 {[%clk 0:03:02.4]} 8. Ne4 {[%clk 0:03:01.4]}
8... Qc7 {[%clk 0:02:52.6]} 9. d3 {[%clk 0:03:01.3]} 9... Nge7 {[%clk
0:02:41.6]} 10. O-O {[%clk 0:03:00.9]} 10... b6 {[%clk 0:02:36.1]} 11. c3 {[%clk
0:02:52]} 11... O-O {[%clk 0:02:34]} 12. Qe1 {[%clk 0:02:51]} 12... Bb7 {[%clk
0:02:33.3]} 13. Qh4 {[%clk 0:02:49.1]} 13... Nf5 {[%clk 0:02:11.3]} 14. Nf6+
{[%clk 0:02:47.2]} 14... Bxf6 {[%clk 0:02:11.2]} 15. Qxf6 {[%clk 0:02:48.1]}
15... Rad8 {[%clk 0:01:54.2]} 16. g4 {[%clk 0:01:31.2]} 16... Qe7 {[%clk
0:01:52.6]} 17. Qxe7 {[%clk 0:01:27.4]} 17... Nfxe7 {[%clk 0:01:53.5]} 18. f5
{[%clk 0:00:49.9]} 18... exf5 {[%clk 0:01:47]} 19. Bh6 {[%clk 0:00:48]} 19...
Rfe8 {[%clk 0:01:47.3]} 20. Rae1 {[%clk 0:00:42.5]} 20... Na5 {[%clk 0:01:42.5]}
21. Bg5 {[%clk 0:00:41]} 21... Nxc4 {[%clk 0:01:38.1]} 22. dxc4 {[%clk
0:00:41.9]} 22... Be4 {[%clk 0:01:36.8]} 23. gxf5 {[%clk 0:00:38.4]} 23... gxf5
{[%clk 0:01:28.7]} 24. Kf2 {[%clk 0:00:32]} 24... Rd3 {[%clk 0:01:13.1]} 25. Ne5
{[%clk 0:00:23.4]} 25... Rh3 {[%clk 0:01:12.7]} 26. Bf4 {[%clk 0:00:04.8]} 26...
Ng6 {[%clk 0:01:09.8]} 27. Nxg6 {[%clk 0:00:04.6]} 27... hxg6 {[%clk 0:01:08]}
28. Bg3 {[%clk 0:00:04.1]} 28... g5 {[%clk 0:01:03]} 29. Kg1 {[%clk 0:00:04.7]}
29... f4 {[%clk 0:01:02.2]} 30. Bf2 {[%clk 0:00:05.1]} 30... f5 {[%clk
0:01:01.9]} 31. Rd1 {[%clk 0:00:04]} 31... g4 {[%clk 0:00:55.5]} 32. Rfe1 {[%clk
0:00:02.8]} 32... g3 {[%clk 0:00:53.9]} 0-1

[Event "Late-Titled-Tuesday-Blitz-January-16-2024"]
[Site "Chess.com"]
[Date "2024.01.16"]
[Round "1"]
[White "djano"]
[Black "GrotBchess"]
[Result "1-0"]
[WhiteElo "2637"]
[BlackElo "2310"]
[TimeControl "180+1"]
[EndTime "14:06:30 PST"]
[Termination "djano won by resignation"]

1. e4 {[%clk 0:03:00.9]} 1... c5 {[%clk 0:02:59]} 2. Nc3 {[%clk 0:03:00.6]} 2...
e6 {[%clk 0:02:58.9]} 3. f4 {[%clk 0:02:57.9]} 3... Nc6 {[%clk 0:02:58.9]} 4.
Nf3 {[%clk 0:02:57.5]} 4... Nge7 {[%clk 0:02:56.5]} 5. g3 {[%clk 0:02:48.1]}
5... d5 {[%clk 0:02:56]} 6. d3 {[%clk 0:02:48.7]} 6... g6 {[%clk 0:02:50.9]} 7.
Bg2 {[%clk 0:02:48.7]} 7... Bg7 {[%clk 0:02:50.5]} 8. O-O {[%clk 0:02:48.5]}
8... a6 {[%clk 0:02:50]} 9. e5 {[%clk 0:02:44.2]} 9... b5 {[%clk 0:02:48.1]} 10.
a4 {[%clk 0:02:43]} 10... Rb8 {[%clk 0:02:41.4]} 11. axb5 {[%clk 0:02:41.6]}
11... axb5 {[%clk 0:02:42]} 12. Bd2 {[%clk 0:02:37.9]} 12... Qc7 {[%clk
0:02:38.7]} 13. Kh1 {[%clk 0:02:33.7]} 13... Bd7 {[%clk 0:02:37.2]} 14. Ne2
{[%clk 0:02:26.9]} 14... h5 {[%clk 0:02:34.3]} 15. c3 {[%clk 0:02:26]} 15... Nf5
{[%clk 0:02:33.6]} 16. d4 {[%clk 0:02:15.7]} 16... c4 {[%clk 0:02:33.2]} 17. Kg1
{[%clk 0:02:07.1]} 17... Na5 {[%clk 0:02:26.6]} 18. Ra2 {[%clk 0:01:47.5]} 18...
Nb3 {[%clk 0:02:24.8]} 19. Nc1 {[%clk 0:01:45.4]} 19... Na5 {[%clk 0:02:11.8]}
20. Ne1 {[%clk 0:01:32]} 20... Bf8 {[%clk 0:02:02.3]} 21. Nc2 {[%clk 0:01:31.6]}
21... Be7 {[%clk 0:02:00.3]} 22. Ne3 {[%clk 0:01:30.9]} 22... Nxe3 {[%clk
0:01:58.2]} 23. Bxe3 {[%clk 0:01:31.3]} 23... b4 {[%clk 0:01:57.5]} 24. Bd2
{[%clk 0:01:28]} 24... b3 {[%clk 0:01:54.2]} 25. Ra1 {[%clk 0:01:26.7]} 25...
Nc6 {[%clk 0:01:53]} 26. Ne2 {[%clk 0:01:26.8]} 26... O-O {[%clk 0:01:50.7]} 27.
g4 {[%clk 0:01:23.7]} 27... hxg4 {[%clk 0:01:41.1]} 28. Ng3 {[%clk 0:01:24.1]}
28... Bd8 {[%clk 0:01:29.3]} 29. Qxg4 {[%clk 0:01:22.9]} 29... Ne7 {[%clk
0:01:29.3]} 30. h4 {[%clk 0:01:18.4]} 30... Nf5 {[%clk 0:01:24]} 31. h5 {[%clk
0:01:11.7]} 31... Nh6 {[%clk 0:01:19.5]} 32. Qh3 {[%clk 0:01:05.9]} 32... Kg7
{[%clk 0:01:18]} 33. hxg6 {[%clk 0:01:00.1]} 33... fxg6 {[%clk 0:01:18.9]} 34.
f5 {[%clk 0:00:59.2]} 34... Nxf5 {[%clk 0:00:48.1]} 35. Nxf5+ {[%clk 0:00:54.5]}
35... Rxf5 {[%clk 0:00:46.1]} 36. Qh6+ {[%clk 0:00:54]} 36... Kf7 {[%clk
0:00:39.4]} 37. Qh7+ {[%clk 0:00:54.3]} 37... Kf8 {[%clk 0:00:33.8]} 38. Bh6+
{[%clk 0:00:52.2]} 38... Ke8 {[%clk 0:00:29.8]} 39. Qg8+ {[%clk 0:00:50]} 39...
Ke7 {[%clk 0:00:28.6]} 40. Bf8+ {[%clk 0:00:49]} 40... Ke8 {[%clk 0:00:23.7]}
41. Bd6+ {[%clk 0:00:47.1]} 1-0

[Event "Late-Titled-Tuesday-Blitz-January-16-2024"]
[Site "Chess.com"]
[Date "2024.01.16"]
[Round "1"]
[White "albi1999"]
[Black "imdarealist"]
[Result "1-0"]
[WhiteElo "2620"]
[BlackElo "2267"]
[TimeControl "180+1"]
[EndTime "14:06:37 PST"]
[Termination "albi1999 won by checkmate"]

1. d4 {[%clk 0:02:50.8]} 1... Nf6 {[%clk 0:02:57]} 2. Nf3 {[%clk 0:02:49.3]}
2... e6 {[%clk 0:02:54.8]} 3. Bf4 {[%clk 0:02:47.3]} 3... b6 {[%clk 0:02:53.5]}
4. e3 {[%clk 0:02:47.5]} 4... Bb7 {[%clk 0:02:53.6]} 5. Be2 {[%clk 0:02:46.3]}
5... Be7 {[%clk 0:02:53.8]} 6. O-O {[%clk 0:02:46.2]} 6... O-O {[%clk
0:02:54.6]} 7. c4 {[%clk 0:02:46.3]} 7... c5 {[%clk 0:02:53.1]} 8. Nc3 {[%clk
0:02:43.9]} 8... a6 {[%clk 0:02:53.3]} 9. d5 {[%clk 0:02:43.2]} 9... exd5 {[%clk
0:02:49.6]} 10. cxd5 {[%clk 0:02:44.1]} 10... d6 {[%clk 0:02:49.2]} 11. a4
{[%clk 0:02:43.8]} 11... Nbd7 {[%clk 0:02:45.8]} 12. h3 {[%clk 0:02:43.5]} 12...
Re8 {[%clk 0:02:46.2]} 13. e4 {[%clk 0:02:40.9]} 13... Bf8 {[%clk 0:02:45.9]}
14. Qc2 {[%clk 0:02:40.6]} 14... Ne5 {[%clk 0:02:44.3]} 15. Nd2 {[%clk
0:02:29.5]} 15... Nfd7 {[%clk 0:02:33.5]} 16. Be3 {[%clk 0:02:20.9]} 16... Ng6
{[%clk 0:02:27.8]} 17. f4 {[%clk 0:02:16.7]} 17... f5 {[%clk 0:02:23.6]} 18.
Rae1 {[%clk 0:02:15.1]} 18... Nf6 {[%clk 0:02:22.6]} 19. Bf3 {[%clk 0:02:10.2]}
19... fxe4 {[%clk 0:02:20.6]} 20. Ndxe4 {[%clk 0:02:11.1]} 20... Nxe4 {[%clk
0:02:20.2]} 21. Bxe4 {[%clk 0:02:09.3]} 21... Be7 {[%clk 0:02:17.6]} 22. Bf5
{[%clk 0:02:04.9]} 22... Bf6 {[%clk 0:02:16.1]} 23. Be6+ {[%clk 0:02:04.9]}
23... Kh8 {[%clk 0:02:16.6]} 24. f5 {[%clk 0:02:02.7]} 24... Ne5 {[%clk
0:02:16.8]} 25. Ne4 {[%clk 0:02:01.1]} 25... b5 {[%clk 0:02:01.1]} 26. a5 {[%clk
0:01:55.2]} 26... Bc8 {[%clk 0:01:42.3]} 27. b3 {[%clk 0:01:42.2]} 27... Bxe6
{[%clk 0:01:10.8]} 28. fxe6 {[%clk 0:01:39.8]} 28... Rf8 {[%clk 0:01:05.3]} 29.
Qe2 {[%clk 0:01:30.6]} 29... Bh4 {[%clk 0:01:00.2]} 30. Rxf8+ {[%clk 0:01:22]}
30... Qxf8 {[%clk 0:00:59.5]} 31. Rf1 {[%clk 0:01:22.9]} 31... Qe7 {[%clk
0:00:58.5]} 32. Qh5 {[%clk 0:01:21]} 32... Bf6 {[%clk 0:00:42.5]} 33. Ng5 {[%clk
0:01:02.2]} 33... Bxg5 {[%clk 0:00:39]} 34. Bxg5 {[%clk 0:01:01.6]} 34... Qe8
{[%clk 0:00:39.4]} 35. Qxe8+ {[%clk 0:00:56.5]} 35... Rxe8 {[%clk 0:00:40.3]}
36. Be7 {[%clk 0:00:55.9]} 36... c4 {[%clk 0:00:25.7]} 37. Bxd6 {[%clk
0:00:55.1]} 37... Nd3 {[%clk 0:00:25.9]} 38. bxc4 {[%clk 0:00:52.5]} 38... bxc4
{[%clk 0:00:25.2]} 39. e7 {[%clk 0:00:51.7]} 39... Rxe7 {[%clk 0:00:21.1]} 40.
Rf8# {[%clk 0:00:51.1]} 1-0

[Event "Late-Titled-Tuesday-Blitz-January-16-2024"]
[Site "Chess.com"]
[Date "2024.01.16"]
[Round "1"]
[White "Javylavilla"]
[Black "yaguigor"]
[Result "1-0"]
[WhiteElo "2352"]
[BlackElo "2630"]
[TimeControl "180+1"]
[EndTime "14:06:40 PST"]
[Termination "Javylavilla won on time"]

1. e4 {[%clk 0:03:00.9]} 1... c5 {[%clk 0:02:59.1]} 2. Nf3 {[%clk 0:03:00.3]}
2... Nc6 {[%clk 0:02:59.3]} 3. Bb5 {[%clk 0:03:00]} 3... Nf6 {[%clk 0:02:58.5]}
4. e5 {[%clk 0:02:54.7]} 4... Ng4 {[%clk 0:02:55.1]} 5. Bxc6 {[%clk 0:02:53.7]}
5... dxc6 {[%clk 0:02:54]} 6. O-O {[%clk 0:02:53.5]} 6... g6 {[%clk 0:02:53.4]}
7. h3 {[%clk 0:02:51.5]} 7... Nh6 {[%clk 0:02:52.6]} 8. d3 {[%clk 0:02:50.5]}
8... Bg7 {[%clk 0:02:51.9]} 9. Nc3 {[%clk 0:02:50.2]} 9... Nf5 {[%clk
0:02:47.3]} 10. Ne4 {[%clk 0:02:48.2]} 10... b6 {[%clk 0:02:46.5]} 11. Re1
{[%clk 0:02:47.2]} 11... Rg8 {[%clk 0:02:45.6]} 12. Bf4 {[%clk 0:02:38.2]} 12...
Kf8 {[%clk 0:02:43.5]} 13. e6 {[%clk 0:02:30.2]} 13... f6 {[%clk 0:02:14.6]} 14.
c3 {[%clk 0:02:21.2]} 14... Bxe6 {[%clk 0:02:04.3]} 15. Nxc5 {[%clk 0:02:17.9]}
15... Bf7 {[%clk 0:01:54.6]} 16. Ne6+ {[%clk 0:02:15.4]} 16... Bxe6 {[%clk
0:01:54.4]} 17. Rxe6 {[%clk 0:02:16.3]} 17... Qd7 {[%clk 0:01:49.6]} 18. Qe2
{[%clk 0:02:16.4]} 18... Kf7 {[%clk 0:01:45.4]} 19. Re1 {[%clk 0:02:15.6]} 19...
Rge8 {[%clk 0:01:42.9]} 20. g4 {[%clk 0:02:09.1]} 20... Nh6 {[%clk 0:01:39.8]}
21. Nd4 {[%clk 0:02:01.5]} 21... c5 {[%clk 0:01:32.9]} 22. Nc6 {[%clk
0:01:58.9]} 22... Ng8 {[%clk 0:01:31.8]} 23. d4 {[%clk 0:01:55]} 23... cxd4
{[%clk 0:01:26.8]} 24. cxd4 {[%clk 0:01:51.5]} 24... Rac8 {[%clk 0:01:18.1]} 25.
Qc4 {[%clk 0:01:49.1]} 25... Kf8 {[%clk 0:01:14.1]} 26. d5 {[%clk 0:01:49.1]}
26... f5 {[%clk 0:00:46.6]} 27. Bg5 {[%clk 0:01:39.7]} 27... Bf6 {[%clk
0:00:40.3]} 28. Bxf6 {[%clk 0:01:37.6]} 28... exf6 {[%clk 0:00:37.6]} 29. gxf5
{[%clk 0:01:35]} 29... gxf5 {[%clk 0:00:35.1]} 30. Qh4 {[%clk 0:01:22.8]} 30...
Qxd5 {[%clk 0:00:29.8]} 31. Qb4+ {[%clk 0:01:04.1]} 31... Kf7 {[%clk 0:00:13.6]}
32. Ne7 {[%clk 0:00:58.4]} 32... Nxe7 {[%clk 0:00:07.3]} 33. Rxe7+ {[%clk
0:00:59.3]} 33... Rxe7 {[%clk 0:00:07.5]} 34. Qxe7+ {[%clk 0:00:51.6]} 34... Kg6
{[%clk 0:00:07.8]} 35. Kh2 {[%clk 0:00:51]} 1-0

[Event "Late-Titled-Tuesday-Blitz-January-16-2024"]
[Site "Chess.com"]
[Date "2024.01.16"]
[Round "1"]
[White "arenal72"]
[Black "Rgoltsman"]
[Result "1-0"]
[WhiteElo "2580"]
[BlackElo "2199"]
[TimeControl "180+1"]
[EndTime "14:06:40 PST"]
[Termination "arenal72 won by resignation"]

1. Nf3 {[%clk 0:03:00]} 1... Nf6 {[%clk 0:02:59.6]} 2. g3 {[%clk 0:02:59]} 2...
g6 {[%clk 0:02:59.7]} 3. Bg2 {[%clk 0:02:59.2]} 3... Bg7 {[%clk 0:03:00]} 4. O-O
{[%clk 0:02:59.8]} 4... O-O {[%clk 0:03:00.8]} 5. c4 {[%clk 0:02:53.4]} 5... c5
{[%clk 0:02:59]} 6. Nc3 {[%clk 0:02:46.6]} 6... Nc6 {[%clk 0:02:58.6]} 7. d4
{[%clk 0:02:46.2]} 7... cxd4 {[%clk 0:02:58.6]} 8. Nxd4 {[%clk 0:02:46.5]} 8...
a6 {[%clk 0:02:58]} 9. Nc2 {[%clk 0:02:43.8]} 9... d6 {[%clk 0:02:57.3]} 10. e4
{[%clk 0:02:42.8]} 10... Be6 {[%clk 0:02:56.5]} 11. Ne3 {[%clk 0:02:35.2]} 11...
Rc8 {[%clk 0:02:54.1]} 12. Bd2 {[%clk 0:02:26.9]} 12... Ne5 {[%clk 0:02:17.5]}
13. b3 {[%clk 0:02:24.3]} 13... Nfd7 {[%clk 0:02:12.6]} 14. a4 {[%clk 0:02:14]}
14... Nc5 {[%clk 0:02:12.1]} 15. a5 {[%clk 0:02:14]} 15... h5 {[%clk 0:02:07.7]}
16. Ncd5 {[%clk 0:02:05.8]} 16... Ng4 {[%clk 0:02:00.9]} 17. Ra2 {[%clk
0:01:51.7]} 17... Nxe3 {[%clk 0:01:56.6]} 18. Bxe3 {[%clk 0:01:50.2]} 18... Bxd5
{[%clk 0:01:54.2]} 19. exd5 {[%clk 0:01:49.6]} 19... Qd7 {[%clk 0:01:48.5]} 20.
b4 {[%clk 0:01:47]} 20... Ne6 {[%clk 0:01:19.1]} 21. dxe6 {[%clk 0:01:43.8]}
21... Qxe6 {[%clk 0:01:20]} 22. Bxb7 {[%clk 0:01:41.9]} 22... Rb8 {[%clk
0:01:14.7]} 23. Bd5 {[%clk 0:01:38.3]} 23... Qf5 {[%clk 0:01:14.1]} 24. Qb1
{[%clk 0:01:28.8]} 24... Qg4 {[%clk 0:01:10.9]} 25. b5 {[%clk 0:01:14.6]} 25...
e6 {[%clk 0:01:05.8]} 26. Bg2 {[%clk 0:01:07.9]} 26... Qxc4 {[%clk 0:01:05.9]}
27. b6 {[%clk 0:01:07.6]} 27... d5 {[%clk 0:01:05.5]} 28. Rc1 {[%clk 0:01:05.8]}
28... Qg4 {[%clk 0:01:06]} 29. h3 {[%clk 0:01:01.2]} 29... Qf5 {[%clk
0:00:56.6]} 30. Qxf5 {[%clk 0:01:00.5]} 30... gxf5 {[%clk 0:00:57.5]} 31. Rac2
{[%clk 0:00:59]} 31... d4 {[%clk 0:00:56.3]} 32. Bd2 {[%clk 0:00:58.4]} 32... e5
{[%clk 0:00:55.1]} 33. Bf1 {[%clk 0:00:56.7]} 33... e4 {[%clk 0:00:54.5]} 34.
Bxa6 {[%clk 0:00:56.3]} 34... Be5 {[%clk 0:00:51.4]} 35. Rc5 {[%clk 0:00:53]}
35... f6 {[%clk 0:00:50.4]} 36. b7 {[%clk 0:00:45.9]} 36... Kg7 {[%clk 0:00:48]}
37. Rc8 {[%clk 0:00:39.4]} 37... h4 {[%clk 0:00:40.7]} 38. Rxf8 {[%clk
0:00:37.6]} 38... Rxf8 {[%clk 0:00:41.6]} 39. Rc8 {[%clk 0:00:36.5]} 39... hxg3
{[%clk 0:00:40.3]} 40. Bh6+ {[%clk 0:00:34.4]} 40... Kxh6 {[%clk 0:00:38.5]} 41.
Rxf8 {[%clk 0:00:35]} 41... gxf2+ {[%clk 0:00:39.4]} 42. Kxf2 {[%clk 0:00:34.6]}
42... e3+ {[%clk 0:00:40.3]} 43. Ke2 {[%clk 0:00:34.3]} 43... f4 {[%clk
0:00:40.8]} 44. b8=Q {[%clk 0:00:33.7]} 44... Bxb8 {[%clk 0:00:41.4]} 45. Rxb8
{[%clk 0:00:34.1]} 45... d3+ {[%clk 0:00:40.8]} 46. Bxd3 {[%clk 0:00:33.4]} 1-0

[Event "Late-Titled-Tuesday-Blitz-January-16-2024"]
[Site "Chess.com"]
[Date "2024.01.16"]
[Round "1"]
[White "Walter_White_Poland"]
[Black "YurasovMat-2012"]
[Result "1-0"]
[WhiteElo "2348"]
[BlackElo "2626"]
[TimeControl "180+1"]
[EndTime "14:06:42 PST"]
[Termination "Walter_White_Poland won by checkmate"]

1. e4 {[%clk 0:03:00.9]} 1... e5 {[%clk 0:02:58.9]} 2. Nf3 {[%clk 0:03:00.8]}
2... Nf6 {[%clk 0:02:54.5]} 3. d4 {[%clk 0:03:00]} 3... Nxe4 {[%clk 0:02:52.3]}
4. Bd3 {[%clk 0:02:54.8]} 4... Nc6 {[%clk 0:02:51.6]} 5. Bxe4 {[%clk 0:02:52.6]}
5... d5 {[%clk 0:02:50.5]} 6. Bg5 {[%clk 0:02:52.3]} 6... Be7 {[%clk 0:02:40.8]}
7. Bxe7 {[%clk 0:02:40.7]} 7... Nxe7 {[%clk 0:02:38]} 8. dxe5 {[%clk 0:02:34.7]}
8... dxe4 {[%clk 0:02:35.5]} 9. Qxd8+ {[%clk 0:02:35.6]} 9... Kxd8 {[%clk
0:02:34.7]} 10. Ng5 {[%clk 0:02:33.8]} 10... Ke8 {[%clk 0:02:34.4]} 11. Nc3
{[%clk 0:02:24.2]} 11... Nc6 {[%clk 0:02:29.6]} 12. Nd5 {[%clk 0:01:41.3]} 12...
Kd7 {[%clk 0:02:13.6]} 13. O-O-O {[%clk 0:01:36.9]} 13... Nxe5 {[%clk
0:02:06.8]} 14. Nb6+ {[%clk 0:01:34]} 14... Kc6 {[%clk 0:02:06.5]} 15. Nxa8
{[%clk 0:01:33.3]} 15... Bf5 {[%clk 0:02:02.8]} 16. Nxc7 {[%clk 0:01:24.3]}
16... Kxc7 {[%clk 0:01:56.9]} 17. Rhe1 {[%clk 0:01:23.4]} 17... Kb8 {[%clk
0:01:53.2]} 18. Nxe4 {[%clk 0:01:23.2]} 18... Rc8 {[%clk 0:01:53.6]} 19. f3
{[%clk 0:01:20.6]} 19... Bg6 {[%clk 0:01:49.1]} 20. Rd2 {[%clk 0:01:12.4]} 20...
Nc4 {[%clk 0:01:47.6]} 21. Rd4 {[%clk 0:01:10.4]} 21... a5 {[%clk 0:01:42.8]}
22. c3 {[%clk 0:01:10.3]} 22... Rc6 {[%clk 0:01:40.3]} 23. b3 {[%clk 0:00:46.5]}
23... Ne5 {[%clk 0:01:33.4]} 24. Kb2 {[%clk 0:00:45.8]} 24... a4 {[%clk
0:01:31.3]} 25. Nf2 {[%clk 0:00:35]} 25... axb3 {[%clk 0:01:25.8]} 26. Rxe5
{[%clk 0:00:28.6]} 26... bxa2 {[%clk 0:01:25.4]} 27. Kxa2 {[%clk 0:00:28.6]}
27... Rxc3 {[%clk 0:01:26.3]} 28. Ne4 {[%clk 0:00:25.5]} 28... Rc2+ {[%clk
0:01:26.6]} 29. Kb3 {[%clk 0:00:25.3]} 29... Rxg2 {[%clk 0:01:27.1]} 30. Re7
{[%clk 0:00:24.6]} 30... Rg1 {[%clk 0:01:20.9]} 31. Rb4 {[%clk 0:00:21.2]} 31...
Rb1+ {[%clk 0:01:14.5]} 32. Kc3 {[%clk 0:00:21.1]} 32... Rc1+ {[%clk 0:01:09.2]}
33. Kd2 {[%clk 0:00:20.5]} 33... Ra1 {[%clk 0:01:05.7]} 34. Rbxb7+ {[%clk
0:00:19.8]} 34... Ka8 {[%clk 0:01:05.3]} 35. Nc5 {[%clk 0:00:17.4]} 35... Ra2+
{[%clk 0:01:02.2]} 36. Ke3 {[%clk 0:00:17]} 36... Ra3+ {[%clk 0:00:59.5]} 37.
Kf4 {[%clk 0:00:16.9]} 37... Bh5 {[%clk 0:00:50.9]} 38. Re8# {[%clk 0:00:16.4]}
1-0

[Event "Late-Titled-Tuesday-Blitz-January-16-2024"]
[Site "Chess.com"]
[Date "2024.01.16"]
[Round "1"]
[White "MikaelyanArman"]
[Black "The_Straightforward_Rook"]
[Result "1-0"]
[WhiteElo "2857"]
[BlackElo "2462"]
[TimeControl "180+1"]
[EndTime "14:06:43 PST"]
[Termination "MikaelyanArman won by resignation"]

1. d4 {[%clk 0:02:59.9]} 1... d5 {[%clk 0:02:52]} 2. Nf3 {[%clk 0:02:58.3]} 2...
Nf6 {[%clk 0:02:49.7]} 3. c4 {[%clk 0:02:58.4]} 3... c6 {[%clk 0:02:48.8]} 4. e3
{[%clk 0:02:56.7]} 4... e6 {[%clk 0:02:48]} 5. Nc3 {[%clk 0:02:53.3]} 5... Nbd7
{[%clk 0:02:48.5]} 6. Qc2 {[%clk 0:02:51.6]} 6... Bd6 {[%clk 0:02:49.1]} 7. b3
{[%clk 0:02:51.2]} 7... O-O {[%clk 0:02:48.1]} 8. Be2 {[%clk 0:02:51.8]} 8...
Re8 {[%clk 0:02:42.5]} 9. O-O {[%clk 0:02:51.3]} 9... e5 {[%clk 0:02:42.9]} 10.
dxe5 {[%clk 0:02:41]} 10... Nxe5 {[%clk 0:02:41.5]} 11. cxd5 {[%clk 0:02:41]}
11... cxd5 {[%clk 0:02:40.6]} 12. Bb2 {[%clk 0:02:37.9]} 12... a6 {[%clk
0:02:30.3]} 13. Rad1 {[%clk 0:02:31.5]} 13... Be6 {[%clk 0:02:26.6]} 14. Nd4
{[%clk 0:02:22.8]} 14... Rc8 {[%clk 0:02:22.7]} 15. Qb1 {[%clk 0:02:19.3]} 15...
Ng6 {[%clk 0:02:13.3]} 16. Nxe6 {[%clk 0:02:16.4]} 16... fxe6 {[%clk 0:02:12.3]}
17. g3 {[%clk 0:01:58.3]} 17... Qe7 {[%clk 0:02:04.9]} 18. Bf3 {[%clk 0:01:57]}
18... Qf7 {[%clk 0:02:03.5]} 19. Bg2 {[%clk 0:01:56.1]} 19... Be5 {[%clk
0:01:59.9]} 20. Ne2 {[%clk 0:01:52.4]} 20... Bxb2 {[%clk 0:01:59]} 21. Qxb2
{[%clk 0:01:53.3]} 21... h5 {[%clk 0:01:55.8]} 22. h3 {[%clk 0:01:49.4]} 22...
h4 {[%clk 0:01:53]} 23. g4 {[%clk 0:01:49.4]} 23... Rc7 {[%clk 0:01:52.8]} 24.
Rc1 {[%clk 0:01:47.4]} 24... Rec8 {[%clk 0:01:52]} 25. Nd4 {[%clk 0:01:44]}
25... Ne5 {[%clk 0:01:46.6]} 26. Rxc7 {[%clk 0:01:35.8]} 26... Rxc7 {[%clk
0:01:44.9]} 27. Nb5 {[%clk 0:01:06.1]} 27... axb5 {[%clk 0:01:15.1]} 28. Qxe5
{[%clk 0:01:04.3]} 28... Rc2 {[%clk 0:01:12.3]} 29. Qb8+ {[%clk 0:00:47.7]}
29... Kh7 {[%clk 0:01:11.1]} 30. Qf4 {[%clk 0:00:48.3]} 30... Qg6 {[%clk
0:01:05.8]} 31. g5 {[%clk 0:00:47.1]} 31... Ne4 {[%clk 0:00:49.6]} 32. Qxh4+
{[%clk 0:00:47]} 32... Kg8 {[%clk 0:00:49.7]} 33. Bxe4 {[%clk 0:00:46.1]} 33...
Qxe4 {[%clk 0:00:47.8]} 34. Qxe4 {[%clk 0:00:40.3]} 34... dxe4 {[%clk
0:00:48.7]} 35. Rd1 {[%clk 0:00:40.6]} 35... Rxa2 {[%clk 0:00:47.9]} 36. Rd4
{[%clk 0:00:40.5]} 36... Kh7 {[%clk 0:00:41.6]} 37. Rxe4 {[%clk 0:00:39.9]}
37... Kg6 {[%clk 0:00:42.2]} 38. Rxe6+ {[%clk 0:00:38.8]} 38... Kxg5 {[%clk
0:00:42.2]} 39. Re5+ {[%clk 0:00:38.9]} 39... Kh4 {[%clk 0:00:42.1]} 40. Kg2
{[%clk 0:00:35.4]} 40... g5 {[%clk 0:00:33.3]} 41. Rxb5 {[%clk 0:00:35.2]} 1-0